bitfinex/quotes_BTCUSD_20251016
["timestamp","ask_amount","ask_price","bid_price","bid_amount"]
[1760610324959,0.55615787,111600.0,111590.0,0.00108574]
[1760610326121,0.98557065,111600.0,111590.0,0.00108574]
[1760610326350,1.00494988,111600.0,111590.0,0.00108574]
[1760610327019,0.66522722,111600.0,111590.0,0.00108574]
[1760610327240,1.00494988,111600.0,111590.0,0.00108574]
[1760610328132,0.66522722,111600.0,111590.0,0.00108574]
[1760610328370,1.00494988,111600.0,111590.0,0.00108574]
[1760610328625,1.00493864,111600.0,111590.0,0.00108574]
[1760610329547,1.00493741,111600.0,111590.0,0.00108574]
[1760610329761,0.98557065,111600.0,111590.0,0.00108574]
[1760610329994,1.00493727,111600.0,111590.0,0.00108574]
[1760610330428,0.98557065,111600.0,111590.0,0.00108574]
[1760610330649,1.0049363,111600.0,111590.0,0.00108574]
[1760610330869,0.98557065,111600.0,111590.0,0.00108574]
[1760610331092,1.00493622,111600.0,111590.0,0.00108574]
[1760610334162,0.98557065,111600.0,111590.0,0.00108574]
[1760610334371,1.00493254,111600.0,111590.0,0.00108574]
[1760610336468,0.66520988,111600.0,111590.0,0.00108574]
[1760610337126,0.73692799,111600.0,111590.0,0.00108574]
[1760610337607,0.02694641,111600.0,111590.0,0.00108574]
[1760610337847,0.24233819,111610.0,111590.0,0.00108574]
[1760610338058,0.17921146,111600.0,111590.0,0.00108574]
[1760610339515,0.60761567,111610.0,111590.0,0.00108574]
[1760610339747,0.28789301,111610.0,111590.0,0.00108574]
[1760610340443,0.02850541,111610.0,111600.0,0.33972266]
[1760610340671,0.00156071,111610.0,111600.0,0.57272998]
[1760610340894,0.02693986,111620.0,111600.0,0.39351852]
[1760610341147,0.18384391,111630.0,111600.0,0.6638099]
[1760610341419,0.20610607,111630.0,111600.0,0.6638099]
[1760610341648,0.36693923,111630.0,111610.0,0.01791954]
[1760610341887,0.54610407,111630.0,111610.0,0.0950615]
[1760610343017,0.58610407,111630.0,111610.0,0.0950615]
[1760610343241,0.58610691,111630.0,111610.0,0.0950615]
[1760610343692,0.58766737,111630.0,111610.0,0.0950615]
[1760610343988,0.58766737,111630.0,111610.0,0.07714196]
[1760610344219,0.40849969,111630.0,111610.0,0.0950615]
[1760610345576,0.58766422,111630.0,111610.0,0.0950615]
[1760610346033,0.40849969,111630.0,111610.0,0.27425676]
[1760610346262,0.40849969,111630.0,111610.0,0.07714196]
[1760610346488,0.40849969,111630.0,111610.0,0.01791954]
[1760610347586,0.58766384,111630.0,111610.0,0.01791954]
[1760610350039,0.17917935,111620.0,111600.0,0.09108]
[1760610350263,0.17919541,111610.0,111590.0,0.00108574]
[1760610350483,0.17919589,111610.0,111590.0,0.18181586]
[1760610350699,0.17919589,111610.0,111590.0,0.23543581]
[1760610350924,0.17919589,111610.0,111590.0,0.05470569]
[1760610350925,0.52892919,111610.0,111590.0,0.05470569]
[1760610351143,0.17921146,111600.0,111590.0,0.00108574]
[1760610351360,0.18921146,111600.0,111590.0,0.00108574]
[1760610351644,0.21615504,111600.0,111590.0,0.00108574]
[1760610352290,0.03694358,111600.0,111590.0,0.00108574]
[1760610352719,0.02694358,111600.0,111590.0,0.00108574]
[1760610352962,0.34,111610.0,111590.0,0.00108574]
[1760610353177,0.55613951,111610.0,111590.0,0.00108574]
[1760610354238,0.55770015,111610.0,111590.0,0.01482872]
[1760610354657,0.55770015,111610.0,111590.0,0.07730821]
[1760610354877,0.37850415,111610.0,111590.0,0.07730821]
[1760610355100,0.37850415,111610.0,111590.0,0.58251251]
[1760610355330,0.02850415,111610.0,111590.0,0.58251251]
[1760610355558,0.00156064,111610.0,111590.0,0.58251251]
[1760610355776,0.17918019,111620.0,111590.0,0.58251251]
[1760610355993,0.29581283,111620.0,111590.0,0.58251251]
[1760610356658,0.29581283,111620.0,111590.0,0.73071251]
[1760610357103,0.29581283,111620.0,111590.0,0.39098985]
[1760610357313,0.29581283,111620.0,111590.0,0.73071251]
[1760610358910,0.29581204,111620.0,111600.0,0.091]
[1760610359128,0.29581204,111620.0,111600.0,0.13919899]
[1760610359342,0.29737255,111620.0,111600.0,0.13919899]
[1760610359563,0.02694252,111620.0,111600.0,0.38792165]
[1760610359781,0.17918003,111620.0,111600.0,0.04819899]
[1760610360009,0.18918003,111620.0,111600.0,0.01792114]
[1760610360229,0.53786165,111620.0,111590.0,0.15456523]
[1760610360458,0.53786165,111620.0,111590.0,0.24425535]
[1760610360678,0.56480235,111620.0,111590.0,0.24425535]
[1760610361167,0.22507969,111620.0,111590.0,0.42348243]
[1760610361417,0.22507969,111620.0,111590.0,0.80555538]
[1760610361634,0.41901365,111620.0,111600.0,0.01792114]
[1760610361853,0.21612027,111620.0,111600.0,0.10026879]
[1760610362079,0.0369407,111620.0,111600.0,0.48234174]
[1760610362299,0.20612018,111620.0,111600.0,0.4644206]
[1760610363001,0.20612018,111620.0,111600.0,0.08234765]
[1760610363232,0.58819313,111620.0,111600.0,0.10026879]
[1760610363440,0.21612018,111620.0,111600.0,0.08234765]
[1760610363653,0.59819313,111620.0,111590.0,0.56384881]
[1760610364078,0.21612018,111620.0,111590.0,0.56384881]
[1760610364325,0.59819313,111620.0,111590.0,0.56384881]
[1760610364557,0.56128441,111600.0,111590.0,0.00108574]
[1760610364769,0.57128441,111600.0,111590.0,0.00108574]
[1760610365190,0.59823111,111600.0,111590.0,0.00108574]
[1760610366456,0.21615816,111600.0,111590.0,0.00108574]
[1760610366665,0.59823111,111600.0,111590.0,0.00108574]
[1760610367627,1.40999418,111600.0,111590.0,0.00108574]
[1760610367833,1.50095418,111600.0,111590.0,0.00108574]
[1760610369944,1.52028504,111600.0,111590.0,0.00108574]
[1760610370572,1.49333834,111600.0,111590.0,0.00108574]
[1760610370771,1.49489924,111600.0,111590.0,0.00108574]
[1760610371408,0.71142248,111600.0,111590.0,0.00108574]
[1760610371614,1.47556838,111600.0,111590.0,0.00108574]
[1760610372579,1.51175066,111600.0,111590.0,0.00108574]
[1760610373006,1.53106598,111600.0,111590.0,0.00108574]
[1760610374286,1.51175066,111600.0,111590.0,0.00108574]
[1760610377313,0.74760476,111600.0,111590.0,0.00108574]
[1760610377524,1.51175066,111600.0,111590.0,0.00108574]
[1760610378410,1.53105853,111600.0,111590.0,0.00108574]
[1760610385425,0.76691263,111600.0,111590.0,0.00108574]
[1760610385620,1.53105853,111600.0,111590.0,0.00108574]
[1760610386279,0.76691263,111600.0,111590.0,0.00108574]
[1760610386484,1.53105853,111600.0,111590.0,0.00108574]
[1760610386693,0.76691263,111600.0,111590.0,0.00108574]
[1760610386930,1.53105853,111600.0,111590.0,0.00108574]
[1760610387684,0.67595263,111600.0,111590.0,0.00108574]
[1760610387900,1.53105853,111600.0,111590.0,0.00108574]
[1760610389819,1.23058952,111600.0,111590.0,0.00108574]
[1760610390023,0.83661508,111600.0,111590.0,0.00108574]
[1760610390237,1.60076098,111600.0,111590.0,0.00108574]
[1760610392596,0.83661508,111600.0,111590.0,0.00108574]
[1760610392819,1.60076098,111600.0,111590.0,0.00108574]
[1760610393897,1.60072098,111600.0,111590.0,0.00108574]
[1760610397465,1.61754393,111600.0,111590.0,0.00108574]
[1760610398481,1.64168808,111600.0,111590.0,0.00108574]
[1760610399559,1.64268808,111600.0,111590.0,0.00108574]
[1760610399761,1.67488635,111600.0,111590.0,0.00108574]
[1760610399963,1.67489163,111600.0,111590.0,0.00108574]
[1760610401244,5.98107158,111600.0,111590.0,0.00108574]
[1760610401462,7.16697895,111600.0,111590.0,0.00108574]
[1760610401877,6.80167588,111600.0,111590.0,0.00108574]
[1760610402084,7.18374883,111600.0,111590.0,0.00108574]
[1760610402301,7.13441841,111600.0,111590.0,0.00108574]
[1760610402731,7.13541841,111600.0,111590.0,0.00108574]
[1760610404475,6.80175204,111600.0,111590.0,0.00108574]
[1760610404964,6.80331313,111600.0,111590.0,0.00108574]
[1760610405394,6.68883676,111600.0,111590.0,0.00108574]
[1760610405603,1.62662958,111600.0,111590.0,0.00108574]
[1760610405811,1.72109958,111600.0,111590.0,0.00108574]
[1760610406025,1.81201958,111600.0,111590.0,0.00108574]
[1760610406873,6.01561086,111600.0,111590.0,0.00108574]
[1760610407090,6.77975676,111600.0,111590.0,0.00108574]
[1760610408162,6.68528676,111600.0,111590.0,0.00108574]
[1760610409106,1.25851574,111600.0,111590.0,0.00108574]
[1760610409324,1.17910831,111600.0,111590.0,0.00108574]
[1760610409548,1.61002831,111600.0,111590.0,0.00108574]
[1760610409784,0.73077054,111600.0,111590.0,0.00108574]
[1760610409996,1.58427535,111600.0,111590.0,0.00108574]
[1760610410256,1.62045763,111600.0,111590.0,0.00108574]
[1760610410473,1.61945763,111600.0,111590.0,0.00108574]
[1760610410711,1.62045763,111600.0,111590.0,0.00108574]
[1760610410916,1.61945763,111600.0,111590.0,0.00108574]
[1760610411335,1.62045763,111600.0,111590.0,0.00108574]
[1760610411755,1.52953763,111600.0,111590.0,0.00108574]
[1760610411963,1.62041763,111600.0,111590.0,0.00108574]
[1760610412184,1.1112824,111600.0,111590.0,0.00108574]
[1760610412403,0.12030787,111600.0,111590.0,0.38315869]
[1760610412658,0.001,111600.0,111590.0,0.60070208]
[1760610412865,0.001,111600.0,111590.0,0.03940161]
[1760610413082,0.001,111600.0,111590.0,0.05732436]
[1760610413512,0.56126847,111610.0,111590.0,0.05732436]
[1760610417803,0.38207295,111610.0,111590.0,0.05732436]
[1760610418063,0.81295295,111620.0,111590.0,0.6115299]
[1760610418279,0.67043117,111620.0,111590.0,0.60070178]
[1760610418505,1.14182352,111620.0,111590.0,0.60070178]
[1760610418760,0.57918843,111620.0,111590.0,0.60966315]
[1760610418995,0.96126138,111620.0,111590.0,0.60966315]
[1760610419213,0.62125294,111620.0,111590.0,0.60966315]
[1760610419625,0.62125262,111620.0,111600.0,0.01792114]
[1760610419829,0.62125262,111620.0,111600.0,0.06275843]
[1760610421858,0.06,111620.0,111600.0,0.06275843]
[1760610422081,0.62125259,111620.0,111600.0,0.06275843]
[1760610422320,0.62125259,111620.0,111600.0,0.08067957]
[1760610423425,0.23917964,111620.0,111600.0,0.01792114]
[1760610423683,0.51880861,111610.0,111600.0,0.01792114]
[1760610423912,0.51880861,111610.0,111590.0,0.00108574]
[1760610424134,0.52880861,111610.0,111590.0,0.00108574]
[1760610424409,0.61964861,111610.0,111590.0,0.00108574]
[1760610424842,0.17921146,111600.0,111590.0,0.00108574]
[1760610425065,0.18921146,111600.0,111590.0,0.00108574]
[1760610425513,0.52882466,111600.0,111590.0,0.00108574]
[1760610426431,0.86882466,111600.0,111590.0,0.00108574]
[1760610426890,0.99469706,111600.0,111590.0,0.00108574]
[1760610429113,1.33431026,111600.0,111590.0,0.00108574]
[1760610429588,1.33531026,111600.0,111590.0,0.00108574]
[1760610430014,1.35460069,111600.0,111590.0,0.00108574]
[1760610430228,6.35360069,111600.0,111590.0,0.00108574]
[1760610430478,6.37715706,111600.0,111590.0,0.00108574]
[1760610430762,6.37815706,111600.0,111590.0,0.00108574]
[1760610430976,6.40234893,111600.0,111590.0,0.00108574]
[1760610431405,6.40134893,111600.0,111590.0,0.00108574]
[1760610432802,6.40234893,111600.0,111590.0,0.00108574]
[1760610433331,6.40391005,111600.0,111590.0,0.00108574]
[1760610433812,6.42224083,111600.0,111590.0,0.00108574]
[1760610435705,5.74301443,111600.0,111590.0,0.00108574]
[1760610435950,6.48952446,111600.0,111590.0,0.00108574]
[1760610436178,1.46533259,111600.0,111590.0,0.00108574]
[1760610436406,0.99869711,111600.0,111590.0,0.00108574]
[1760610436867,0.74992391,111600.0,111590.0,0.00108574]
[1760610437100,1.08797599,111600.0,111590.0,0.00108574]
[1760610437315,1.12415827,111600.0,111590.0,0.00108574]
[1760610437526,1.12315827,111600.0,111590.0,0.00108574]
[1760610437745,1.12415827,111600.0,111590.0,0.00108574]
[1760610438187,0.78454507,111600.0,111590.0,0.00108574]
[1760610438412,0.71074158,111600.0,111590.0,0.00108574]
[1760610438639,0.61990158,111600.0,111590.0,0.00108574]
[1760610438830,1.05035478,111600.0,111590.0,0.00108574]
[1760610440202,0.95951478,111600.0,111590.0,0.00108574]
[1760610440629,1.05035478,111600.0,111590.0,0.00108574]
[1760610441319,0.95951478,111600.0,111590.0,0.00108574]
[1760610441533,1.05035478,111600.0,111590.0,0.00108574]
[1760610441957,0.95951478,111600.0,111590.0,0.00108574]
[1760610442171,1.05035478,111600.0,111590.0,0.00108574]
[1760610442386,1.06965341,111600.0,111590.0,0.00108574]
[1760610442596,1.05035478,111600.0,111590.0,0.00108574]
[1760610444439,1.0696543,111600.0,111590.0,0.00108574]
[1760610447362,1.44544978,111600.0,111590.0,0.00108574]
[1760610448215,1.47240118,111600.0,111590.0,0.00108574]
[1760610451170,1.13278798,111600.0,111590.0,0.00108574]
[1760610451387,1.47240118,111600.0,111590.0,0.00108574]
[1760610452370,1.49659305,111600.0,111590.0,0.00108574]
[1760610454742,1.40575305,111600.0,111590.0,0.00108574]
[1760610455005,1.15693985,111600.0,111590.0,0.00108574]
[1760610455260,1.51418543,111600.0,111590.0,0.00108574]
[1760610455791,1.17457223,111600.0,111590.0,0.00108574]
[1760610456069,1.51418543,111600.0,111590.0,0.00108574]
[1760610457074,1.42338543,111600.0,111590.0,0.00108574]
[1760610457283,1.53098945,111600.0,111590.0,0.00108574]
[1760610457481,1.55518132,111600.0,111590.0,0.00108574]
[1760610457899,1.21556812,111600.0,111590.0,0.00108574]
[1760610458103,1.12476812,111600.0,111590.0,0.00108574]
[1760610458302,1.17457223,111600.0,111590.0,0.00108574]
[1760610458730,1.14762083,111600.0,111590.0,0.00108574]
[1760610458932,1.05682083,111600.0,111590.0,0.00108574]
[1760610459152,1.14762083,111600.0,111590.0,0.00108574]
[1760610461235,1.48723403,111600.0,111590.0,0.00108574]
[1760610461446,1.53098988,111600.0,111590.0,0.00108574]
[1760610462291,1.55518175,111600.0,111590.0,0.00108574]
[1760610462770,1.57873812,111600.0,111590.0,0.00108574]
[1760610463436,6.57873812,111600.0,111590.0,0.00108574]
[1760610463899,6.59380485,111600.0,111590.0,0.00108574]
[1760610464122,6.62606286,111600.0,111590.0,0.00108574]
[1760610464346,6.62506286,111600.0,111590.0,0.00108574]
[1760610464775,6.61099613,111600.0,111590.0,0.00108574]
[1760610465013,0.17925965,111570.0,111560.0,0.1486]
[1760610465244,0.17925965,111570.0,111560.0,0.01526]
[1760610465245,0.82937286,111570.0,111560.0,0.01526]
[1760610465456,0.84867238,111570.0,111560.0,0.0004]
[1760610466102,0.85790561,111570.0,111560.0,0.0004]
[1760610468334,0.83860609,111570.0,111560.0,0.0004]
[1760610470496,0.85796116,111570.0,111560.0,0.0004]
[1760610470905,0.85796116,111570.0,111560.0,0.00215295]
[1760610474030,0.51834796,111570.0,111560.0,0.00215295]
[1760610474245,0.85796116,111570.0,111560.0,0.00215295]
[1760610476431,0.83860609,111570.0,111560.0,0.00215295]
[1760610478250,0.49899289,111570.0,111560.0,0.00215295]
[1760610478442,0.83860609,111570.0,111560.0,0.00215295]
[1760610480575,0.49899289,111570.0,111560.0,0.00215295]
[1760610480791,0.83860609,111570.0,111560.0,0.00215295]
[1760610481683,1.17860609,111570.0,111560.0,0.00215295]
[1760610482780,1.23414498,111570.0,111560.0,0.00215295]
[1760610483438,1.65965456,111570.0,111560.0,0.00215295]
[1760610486114,1.66121586,111570.0,111560.0,0.00215295]
[1760610487471,0.56185318,111550.0,111530.0,0.17932351]
[1760610487702,0.64185318,111550.0,111530.0,0.29036455]
[1760610487949,0.38256139,111540.0,111530.0,0.08414246]
[1760610488159,0.01,111540.0,111530.0,0.08414246]
[1760610488580,0.39256139,111540.0,111530.0,0.08414246]
[1760610489212,0.01,111540.0,111530.0,0.10207485]
[1760610490070,0.27897328,111560.0,111530.0,0.66396018]
[1760610490288,0.38256139,111550.0,111530.0,0.64602779]
[1760610490564,0.02,111550.0,111540.0,0.17930787]
[1760610490785,0.40256139,111550.0,111540.0,0.04427743]
[1760610491011,0.02,111550.0,111540.0,0.06220821]
[1760610491244,0.57081467,111560.0,111540.0,0.06220821]
[1760610491245,0.17927687,111560.0,111540.0,0.06220821]
[1760610491473,0.57183826,111560.0,111540.0,0.24151585]
[1760610491708,0.57183826,111560.0,111540.0,0.22358507]
[1760610491923,0.39256139,111560.0,111540.0,0.22358507]
[1760610492144,0.57183741,111560.0,111540.0,0.22358507]
[1760610492370,0.18927602,111560.0,111540.0,0.22358507]
[1760610492590,0.57183741,111560.0,111540.0,0.04427743]
[1760610492806,0.57183741,111560.0,111540.0,0.06220821]
[1760610493021,0.18927602,111560.0,111540.0,0.06220821]
[1760610493225,0.57183741,111560.0,111540.0,0.06337722]
[1760610493438,0.57183741,111560.0,111540.0,0.24151569]
[1760610493654,0.38256139,111550.0,111540.0,0.04427743]
[1760610493862,0.57185318,111550.0,111540.0,0.04427743]
[1760610494072,0.18929179,111550.0,111530.0,0.04488658]
[1760610494313,0.57185318,111550.0,111530.0,0.22421035]
[1760610494524,0.57185318,111550.0,111530.0,0.20627796]
[1760610495165,0.57185318,111550.0,111530.0,0.20627793]
[1760610495383,0.39256139,111550.0,111530.0,0.20627793]
[1760610495632,0.57185373,111550.0,111530.0,0.20627793]
[1760610496044,0.01,111550.0,111530.0,0.20627793]
[1760610496254,0.57185358,111550.0,111530.0,0.29311168]
[1760610496464,0.57185358,111550.0,111530.0,0.49634933]
[1760610496695,0.57185358,111550.0,111530.0,0.29311161]
[1760610496916,0.57185358,111550.0,111530.0,0.11378794]
[1760610497169,0.57185358,111550.0,111530.0,0.13172033]
[1760610497598,0.57185358,111550.0,111530.0,0.04488658]
[1760610498509,0.56186926,111540.0,111520.0,0.00048]
[1760610498722,0.57186926,111540.0,111520.0,0.35604791]
[1760610498938,0.39256139,111540.0,111520.0,0.53538764]
[1760610499156,0.57186926,111540.0,111530.0,0.00175367]
[1760610501718,0.39256139,111540.0,111530.0,0.00175367]
[1760610504279,0.01,111540.0,111530.0,0.00175367]
[1760610504492,0.39256139,111540.0,111530.0,0.01968606]
[1760610506042,0.00156145,111550.0,111540.0,0.17930787]
[1760610506256,0.38412284,111550.0,111540.0,0.2374634]
[1760610506468,0.00156145,111550.0,111540.0,0.2374634]
[1760610506677,0.38412284,111550.0,111540.0,0.264418]
[1760610506886,0.00156145,111550.0,111540.0,0.264418]
[1760610507092,0.38412284,111550.0,111540.0,0.264418]
[1760610507929,0.00156145,111550.0,111540.0,0.264418]
[1760610508135,0.38412284,111550.0,111540.0,0.355138]
[1760610509098,0.38412284,111550.0,111540.0,0.17583013]
[1760610509306,0.38412284,111550.0,111540.0,0.10304091]
[1760610509793,0.00156145,111550.0,111540.0,0.10304091]
[1760610509997,0.38412284,111550.0,111540.0,0.10304091]
[1760610510423,0.38412284,111550.0,111540.0,0.25124091]
[1760610510637,0.38412284,111550.0,111540.0,0.23331013]
[1760610511733,0.38412284,111550.0,111540.0,0.41378701]
[1760610513528,0.38412284,111550.0,111540.0,0.23447914]
[1760610514304,0.38412284,111550.0,111540.0,0.41378701]
[1760610514519,0.00156145,111550.0,111540.0,0.41378701]
[1760610514933,0.38412284,111550.0,111540.0,0.41378701]
[1760610515355,0.38412284,111550.0,111540.0,0.23447914]
[1760610516065,0.00156145,111550.0,111540.0,0.41378701]
[1760610516291,0.66178472,111570.0,111540.0,0.88603852]
[1760610516507,0.38256139,111560.0,111550.0,0.19721636]
[1760610516731,0.38256139,111560.0,111550.0,0.10819571]
[1760610516954,0.38256139,111560.0,111550.0,0.13514868]
[1760610517410,4.989e-05,111570.0,111560.0,0.17927572]
[1760610517842,0.38261128,111570.0,111550.0,0.83247868]
[1760610518068,4.989e-05,111570.0,111560.0,0.02695033]
[1760610518296,0.38261128,111570.0,111560.0,0.07463709]
[1760610518510,4.989e-05,111570.0,111560.0,0.07463709]
[1760610518738,0.58187093,111570.0,111560.0,0.07463709]
[1760610518952,0.58187093,111570.0,111560.0,0.02695033]
[1760610519163,0.58187093,111570.0,111560.0,0.60671501]
[1760610519164,4.989e-05,111570.0,111560.0,0.60671501]
[1760610519378,4.989e-05,111570.0,111560.0,0.20622605]
[1760610525416,0.38256139,111580.0,111560.0,0.20622605]
[1760610525626,0.42256139,111580.0,111560.0,0.5889374]
[1760610525838,0.43174904,111580.0,111560.0,0.67861948]
[1760610526535,0.43174904,111580.0,111570.0,0.01792596]
[1760610527191,0.43174904,111580.0,111560.0,0.29605809]
[1760610527402,0.43174904,111580.0,111560.0,0.67861948]
[1760610527842,0.04,111580.0,111570.0,0.56182104]
[1760610528054,0.00156105,111590.0,111570.0,0.64760895]
[1760610528508,0.00156105,111590.0,111580.0,0.38256139]
[1760610528733,0.01052113,111590.0,111570.0,0.38263642]
[1760610528978,0.00156105,111590.0,111580.0,0.38256139]
[1760610530553,0.00156105,111590.0,111580.0,0.56180498]
[1760610530776,0.00156105,111590.0,111580.0,0.67843272]
[1760610530982,0.27256609,111600.0,111580.0,0.67843272]
[1760610531193,0.29256609,111600.0,111580.0,0.67843272]
[1760610531653,0.30179164,111600.0,111580.0,0.67843272]
[1760610531873,0.21115164,111600.0,111580.0,0.67843272]
[1760610532091,0.21115164,111600.0,111580.0,0.6784327]
[1760610532518,0.59471303,111600.0,111580.0,0.6784327]
[1760610535824,0.59471303,111600.0,111580.0,0.11662774]
[1760610536045,0.59471303,111600.0,111580.0,0.13455209]
[1760610536267,0.59471303,111600.0,111580.0,0.31379509]
[1760610536502,0.59471303,111600.0,111580.0,0.67843213]
[1760610537118,0.59471303,111600.0,111580.0,0.49918913]
[1760610537327,0.59471303,111600.0,111580.0,0.67843173]
[1760610537547,0.21215213,111600.0,111580.0,0.67843173]
[1760610537763,0.59627434,111600.0,111580.0,0.67843173]
[1760610538392,0.59627434,111600.0,111580.0,0.11662774]
[1760610538595,0.59627434,111600.0,111580.0,0.13065273]
[1760610539226,0.59627434,111600.0,111580.0,0.30989535]
[1760610539440,0.59627434,111600.0,111580.0,0.11662774]
[1760610539651,0.38256139,111590.0,111580.0,0.01792435]
[1760610540072,0.66596446,111600.0,111580.0,0.01792435]
[1760610540288,0.73596446,111600.0,111580.0,0.01792435]
[1760610540724,0.35340307,111600.0,111580.0,0.01792435]
[1760610540926,0.35340307,111600.0,111580.0,0.19716779]
[1760610541132,0.73596446,111600.0,111580.0,0.28684987]
[1760610541352,0.73596446,111600.0,111580.0,0.26892532]
[1760610541543,0.73496446,111600.0,111580.0,0.26891747]
[1760610541796,0.73496446,111600.0,111580.0,0.65147886]
[1760610542193,0.73496446,111600.0,111580.0,0.08968208]
[1760610542410,0.73496446,111600.0,111580.0,0.10760643]
[1760610542677,0.73596446,111600.0,111580.0,0.10760643]
[1760610543494,0.71250662,111600.0,111580.0,0.10760643]
[1760610543761,0.71250662,111600.0,111580.0,0.01792435]
[1760610544225,0.17922752,111590.0,111580.0,0.01792435]
[1760610544454,0.18922752,111590.0,111580.0,0.01792435]
[1760610545358,0.01,111590.0,111580.0,0.01792435]
[1760610545750,0.18922752,111590.0,111580.0,0.01792435]
[1760610545949,0.18922752,111590.0,111580.0,0.05887655]
[1760610546420,0.01,111590.0,111580.0,0.05887655]
[1760610546935,0.01,111590.0,111570.0,0.08578791]
[1760610546936,0.17924359,111580.0,111570.0,0.08578791]
[1760610547155,0.73871556,111580.0,111560.0,0.09074996]
[1760610547379,0.17925965,111570.0,111560.0,0.09074996]
[1760610547593,0.18925965,111570.0,111560.0,0.00014996]
[1760610549547,0.01,111570.0,111560.0,0.00014996]
[1760610549770,0.18925965,111570.0,111560.0,0.00014996]
[1760610549986,0.18925965,111570.0,111560.0,0.19735325]
[1760610549987,0.01,111570.0,111560.0,0.19735325]
[1760610550206,0.01,111570.0,111560.0,0.28080939]
[1760610550418,0.01,111570.0,111560.0,0.35348182]
[1760610550872,0.01,111570.0,111560.0,0.1742061]
[1760610551345,0.01,111570.0,111560.0,0.19213367]
[1760610552022,0.01,111570.0,111560.0,0.34033367]
[1760610552233,0.01,111570.0,111560.0,0.3224061]
[1760610553079,0.01,111570.0,111560.0,0.50168182]
[1760610553510,0.01,111570.0,111560.0,0.3224061]
[1760610556362,0.18925965,111570.0,111560.0,0.3224061]
[1760610557240,0.01,111570.0,111560.0,0.3224061]
[1760610560742,0.18925965,111570.0,111560.0,0.3224061]
[1760610560962,0.18925965,111570.0,111560.0,0.1742061]
[1760610561171,0.5290415,111570.0,111560.0,0.00014996]
[1760610561596,0.18925965,111570.0,111560.0,0.00014996]
[1760610562553,0.5290415,111570.0,111560.0,0.00014996]
[1760610562981,0.18925965,111570.0,111560.0,0.00014996]
[1760610564268,0.8690415,111570.0,111560.0,0.00014996]
[1760610564699,0.87060267,111570.0,111560.0,0.00014996]
[1760610564921,0.52925965,111570.0,111560.0,0.00014996]
[1760610565574,0.35,111570.0,111560.0,0.0162305]
[1760610565811,0.35,111570.0,111560.0,0.03560966]
[1760610566045,0.01,111570.0,111560.0,0.21488538]
[1760610566265,0.17924375,111580.0,111560.0,0.19903627]
[1760610566478,0.17925965,111570.0,111560.0,0.01976055]
[1760610566686,0.17925965,111570.0,111560.0,0.03768812]
[1760610566893,0.17925965,111570.0,111560.0,0.01976055]
[1760610567570,0.06008974,111570.0,111560.0,0.01976055]
[1760610568706,0.06008974,111570.0,111560.0,0.03768812]
[1760610569543,0.17924375,111580.0,111560.0,0.03768812]
[1760610569770,0.19924375,111580.0,111560.0,0.18588812]
[1760610570824,0.17925965,111570.0,111560.0,0.18588812]
[1760610571283,0.17924375,111580.0,111560.0,0.18588812]
[1760610571490,0.24924375,111580.0,111560.0,0.18588812]
[1760610572301,0.17925965,111570.0,111560.0,0.18588812]
[1760610572475,0.17924375,111580.0,111560.0,0.18588812]
[1760610572680,0.24924375,111580.0,111560.0,0.36516368]
[1760610572878,0.07,111580.0,111570.0,0.17925965]
[1760610573085,0.24924359,111580.0,111570.0,0.07057554]
[1760610573291,0.24924359,111580.0,111570.0,0.05264958]
[1760610573486,0.24924359,111580.0,111560.0,0.27080496]
[1760610573714,0.24924359,111580.0,111560.0,0.45008056]
[1760610574548,0.24924359,111580.0,111560.0,0.27080496]
[1760610576386,0.17925965,111570.0,111560.0,0.18024496]
[1760610576627,0.18925965,111570.0,111560.0,0.18024496]
[1760610581526,0.18925965,111570.0,111560.0,0.03204496]
[1760610582665,0.01,111570.0,111560.0,0.03204496]
[1760610582873,0.01,111570.0,111560.0,0.04997253]
[1760610583294,0.18925965,111570.0,111560.0,0.04997253]
[1760610583967,0.01,111570.0,111560.0,0.04218796]
[1760610584211,0.18925965,111570.0,111560.0,0.04750199]
[1760610585628,0.18925965,111570.0,111560.0,0.03204496]
[1760610587382,0.18925965,111570.0,111560.0,0.18024496]
[1760610588718,0.01,111570.0,111560.0,0.18024496]
[1760610589150,0.18925965,111570.0,111560.0,0.18024496]
[1760610597501,0.18925965,111570.0,111560.0,0.52002681]
[1760610599628,0.18925965,111570.0,111560.0,0.18024496]
[1760610599847,0.18925965,111570.0,111560.0,0.52002681]
[1760610600895,0.18925965,111570.0,111560.0,0.18024496]
[1760610601465,0.18925965,111570.0,111560.0,0.52002681]
[1760610601881,0.01,111570.0,111560.0,0.37182681]
[1760610602219,0.18925965,111570.0,111560.0,0.37182681]
[1760610602365,0.01,111570.0,111560.0,0.55110253]
[1760610602579,0.53859725,111580.0,111560.0,0.55110253]
[1760610602783,0.60859725,111580.0,111560.0,0.55110253]
[1760610603224,0.08935246,111580.0,111570.0,0.33978185]
[1760610603429,0.07,111580.0,111570.0,0.58312077]
[1760610603644,0.07,111580.0,111570.0,0.67364077]
[1760610604274,0.18079223,111590.0,111570.0,0.67364077]
[1760610604682,0.27592237,111600.0,111580.0,0.33978185]
[1760610604683,0.04624687,111600.0,111580.0,0.33978185]
[1760610604894,0.02689441,111600.0,111590.0,0.33978185]
[1760610605127,0.01271372,111600.0,111590.0,0.51900937]
[1760610605329,0.71063953,111610.0,111590.0,0.33978185]
[1760610605330,0.04353315,111610.0,111590.0,0.33978185]
[1760610605577,0.17921146,111600.0,111590.0,0.38208337]
[1760610606000,0.17922752,111590.0,111580.0,0.07722939]
[1760610606542,0.17922752,111590.0,111570.0,0.24428939]
[1760610606778,0.17922752,111590.0,111570.0,0.42354894]
[1760610606961,0.18817203,111600.0,111570.0,0.44015932]
[1760610607212,0.31817203,111600.0,111590.0,0.38208337]
[1760610607930,0.17923122,111590.0,111570.0,0.83120567]
[1760610609245,0.17923122,111590.0,111580.0,0.38208337]
[1760610609458,0.20414462,111610.0,111580.0,0.74069658]
[1760610609667,0.56414462,111610.0,111600.0,0.38208337]
[1760610610527,0.02,111610.0,111600.0,0.9433782]
[1760610610749,0.54903691,111620.0,111600.0,0.9433782]
[1760610610969,0.53287845,111620.0,111610.0,0.38208337]
[1760610611208,0.01,111620.0,111610.0,0.56224545]
[1760610611665,0.29794527,111640.0,111610.0,0.74144086]
[1760610611666,0.20746527,111640.0,111610.0,0.74144086]
[1760610611900,0.01895736,111640.0,111630.0,0.38208337]
[1760610612113,0.18820648,111650.0,111630.0,0.47256337]
[1760610612329,0.18820648,111650.0,111640.0,0.38208337]
[1760610612330,0.21876837,111650.0,111640.0,0.38208337]
[1760610612545,0.18913121,111650.0,111640.0,0.47176545]
[1760610612770,0.04944452,111660.0,111640.0,0.47176545]
[1760610613032,0.22927111,111660.0,111650.0,0.38208337]
[1760610613470,0.22927111,111660.0,111650.0,0.38217288]
[1760610613685,0.22927111,111660.0,111650.0,0.44727307]
[1760610614544,0.22927111,111660.0,111650.0,0.0651897]
[1760610614759,1.16770688,111660.0,111650.0,8.951e-05]
[1760610614975,1.18699571,111660.0,111650.0,8.951e-05]